Cogmind - Beta 10.1 @@@ ROGUE MODE // 2020.10.22 @ 01:11:39 Player: Trollpotato Result: Destroyed self with Light Nuclear Core chain reaction Performance ------------- Evolutions (0) 0 Regions Visited (4) 800 Robots Destroyed (18) 90 Value Destroyed (183) 183 Prototype IDs (23) 460 Alien Tech Used (0) 0 Bonus (427) 427 TOTAL SCORE: 1960 Bonus ------- Follower Combat Kills 127 Aligned with FarCom 300 Cogmind --------- Core Integrity 0/250 Matter 290/300 Energy 80/160 System Corruption 0% Temperature Cool (0) Movement Rolling (100) Ox1 Location -9/Mines Parts ------- > --- POWER (1) -------- Light Nuclear Core > --- PROPULSION (2) --- Wheel Compact Wheel > --- UTILITY (2) ------ Large Storage Unit Light Armor Plating > --- WEAPON (2) ------- Light EM Pulse Cannon Light EM Pulse Cannon > --- INVENTORY (10) --- Light Ion Engine Wheel Large Storage Unit Bomb Drone Bay Light Assault Rifle XL Autogun Array Peak State ------------ > --- POWER ------------ Light Nuclear Core > --- PROPULSION ------- Wheel Compact Wheel > --- UTILITY ---------- Large Storage Unit Large Storage Unit > --- WEAPON ----------- Light EM Pulse Cannon Light EM Pulse Cannon > --- INVENTORY -------- Nuclear Core Light Nuclear Core Light Armor Plating Bomb Drone Bay Light EM Pulse Cannon XL Autogun Array [Rating: 16] Favorites ----------- Power Light Ion Engine Engine Light Ion Engine Power Core Light Nuclear Core Propulsion Compact Wheel Leg Aluminum Leg Wheel Compact Wheel Utility Large Storage Unit Storage Large Storage Unit Protection Light Armor Plating Weapon Assault Rifle Energy Gun Beam Rifle Energy Cannon Light EM Pulse Cannon Ballistic Gun Assault Rifle Build | -11 -10 -10 -10 -9 ------- Run | Scr Mat Min Exi Min Slots Evolved . | . . . . . Power . | . . . . . Propulsion . | . . . . . Utility . | . . . . . Weapon . | . . . . . Parts Attached 23 | 6 4 2 2 9 Power 4 | 1 . . 1 2 Engine 2 | 1 . . 1 . Core 2 | . . . . 2 Reactor . | . . . . . Propulsion 7 | 2 1 2 . 2 Treads . | . . . . . Leg 1 | . 1 . . . Wheel 6 | 2 . 2 . 2 Hover . | . . . . . Flight . | . . . . . Utility 4 | 1 2 . . 1 Device . | . . . . . Storage 3 | 1 2 . . . Processor . | . . . . . Hackware . | . . . . . Protection 1 | . . . . 1 Artifact . | . . . . . Weapon 8 | 2 1 . 1 4 Energy Gun 3 | 1 1 . 1 . Energy Cannon 4 | . . . . 4 Ballistic Gun 1 | 1 . . . . Ballistic Cannon . | . . . . . Launcher . | . . . . . Special Weapon . | . . . . . Impact Weapon . | . . . . . Slashing Weapon . | . . . . . Piercing Weapon . | . . . . . Special Melee Weapon . | . . . . . Unidentified Prototypes . | . . . . . Parts Lost 9 | . 2 . . 7 Power 2 | . . . . 2 Propulsion 2 | . 1 . . 1 Utility . | . . . . . Weapon 5 | . 1 . . 4 Highest Loss Streak 5 | . 2 . . 5 Average Slot Usage (%) 97 | . 96 100 100 90 Engine 11 | . 14 14 14 1 Core 2 | . . . . 12 Leg 4 | . 3 9 . . Wheel 22 | . 23 18 28 22 Storage 27 | . 25 28 28 27 Energy Gun 11 | . 14 14 14 . Energy Cannon 4 | . . . . 23 Ballistic Gun 11 | . 14 14 14 . Naked Turns . | . . . . . Heaviest Build 45 | 11 40 40 40 45 Greatest Support 32 | 26 26 32 32 32 Greatest Overweight (x) 3 | . 3 3 1 2 Average Overweight (x) 1 | . . 1 1 1 Largest Inventory Capacity 16 | 6 16 16 16 16 Average Capacity 15 | 5 14 16 16 15 Most Carried 16 | 4 14 16 16 16 Average Carried 13 | 2 8 15 15 9 Final Capacity 16 | 6 16 16 16 10 Final Carried 16 | 4 14 16 16 10 Class Distribution -------------------- 100% | Mutant Dominant Class ---------------- Mutant | -10/Materials Mutant | -10/Mines Mutant | -10/Exiles Mutant | -9/Mines Resources | -11 -10 -10 -10 -9 ----------- Run | Scr Mat Min Exi Min Matter Collected 484 | 267 46 83 . 88 Remotely . | . . . . . Salvage Created 538 | 72 116 181 . 169 Parts 23 | . 6 10 . 7 Haulers Intercepted . | . . . . . Recyclers Shooed 1 | . . . . 1 Parts Field Recycled . | . . . . . Retrieved Matter . | . . . . . Parts Self-Destructed . | . . . . . Prevented . | . . . . . Kills | -11 -10 -10 -10 -9 ------- Run | Scr Mat Min Exi Min Combat Hostiles Destroyed 12 | . 2 2 . 8 Guns 4 | . 2 2 . . Cannons 8 | . . . . 8 Classes Destroyed 7 | 1 2 1 . 3 Worker 1 | . . . . 1 Tunneler 1 | . . . . 1 Recycler 3 | 1 . 2 . . Watcher 1 | . 1 . . . Swarmer 6 | . . 2 . 4 Grunt 2 | . 2 . . . Assembled 4 | . . . . 4 Best Kill Streak 2 | 1 2 2 . 2 Combat Bots Only 2 | . 2 2 . 2 Max Kills in Single Turn 1 | 1 1 1 . 1 Gunslinging . | . . . . . Exploded . | . . . . . Melee . | . . . . . Uniques/NPCs Destroyed . | . . . . . Combat | -11 -10 -10 -10 -9 -------- Run | Scr Mat Min Exi Min Damage Taken 1120 | . 320 117 . 683 Core 260 | . 62 57 . 141 Absorbed by Shields . | . . . . . Core Remaining (%) 100 | 100 . . . . Volleys Fired 55 | 7 13 13 . 22 Largest 2 | 1 2 2 . 2 Hottest 112 | 20 76 76 . 112 Shots Fired 94 | 7 26 26 . 35 Gun 59 | 7 26 26 . . Cannon 35 | . . . . 35 Launcher . | . . . . . Special . | . . . . . Kinetic 33 | 7 13 13 . . Thermal 20 | . 7 13 . . Explosive . | . . . . . Electromagnetic 41 | . 6 . . 35 Robot Hit Streak 9 | 5 6 4 . 9 Robot Miss Streak 6 | 1 4 3 . 6 Penetration Max . | . . . . . Secondary Targets 1 | . . 1 . . Max Gunslinging Chain 1 | . . 1 . . Shots Hit Robots 55 | 6 16 13 . 20 Core Hits 28 | 2 7 7 . 12 Critical Hits . | . . . . . Critical Kills . | . . . . . Critical Parts Destroyed . | . . . . . Melee Attacks . | . . . . . Impact . | . . . . . Slashing . | . . . . . Piercing . | . . . . . Sneak Attacks . | . . . . . Combat Hostiles . | . . . . . Follow-up Attacks . | . . . . . Damage Inflicted 1132 | 75 250 179 . 628 Guns 468 | 75 214 179 . . Cannons 444 | . . . . 444 Explosions 220 | . 36 . . 184 Melee . | . . . . . Ramming . | . . . . . Kinetic 196 | 75 59 62 . . Thermal 424 | . 123 117 . 184 Explosive . | . . . . . Electromagnetic 512 | . 68 . . 444 Impact . | . . . . . Slashing . | . . . . . Piercing . | . . . . . Highest Corruption . | . . . . . Average Corruption . | . . . . . Corruption Purged . | . . . . . Overload Shots . | . . . . . Overflow Damage 26 | . 6 . . 20 Projectiles . | . . . . . Explosions 26 | . 6 . . 20 Melee . | . . . . . Knockbacks . | . . . . . Impact . | . . . . . Kinetic . | . . . . . Secondary . | . . . . . Self-Inflicted Damage 46 | . . . . 46 Shots 1 | . . . . 1 Rammed . | . . . . . Targets Rammed . | . . . . . Kicked . | . . . . . Crushed . | . . . . . Highest Temperature 175 | . 175 135 . 171 Average Temperature 56 | . 85 45 . 52 Received Heat Transfer 165 | . 120 45 . . Siege Activations . | . . . . . Robots Corrupted . | . . . . . Combat Hostiles . | . . . . . Parts Fried 3 | . . . . 3 Impact Corruptions . | . . . . . Robots Melted . | . . . . . Combat Hostiles . | . . . . . Parts Melted 1 | . . 1 . . Heat Transferred 768 | . 272 296 . 200 Parts Sabotaged . | . . . . . Parts Stolen . | . . . . . Parts Stripped . | . . . . . Power Chain Reactions 3 | . 1 . . 2 Missiles Intercepted . | . . . . . Alert | -11 -10 -10 -10 -9 ------- Run | Scr Mat Min Exi Min Peak Influence 88 | 5 51 88 . 50 Initial 19 | . 3 19 . . Average 31 | 3 22 41 . 18 Maximum Alert Level . | . . . . . Low Security (%) 100 | 100 100 100 . 100 Level 1 . | . . . . . Level 2 . | . . . . . Level 3 . | . . . . . Level 4 . | . . . . . Level 5 . | . . . . . High Security . | . . . . . Max Security . | . . . . . Squads Dispatched 3 | . 2 . . 1 Investigation . | . . . . . Extermination . | . . . . . Reinforcement 3 | . 2 . . 1 Assault . | . . . . . Garrison . | . . . . . Intercept . | . . . . . Construction Impeded 1 | . . . . 1 Haulers Reinforced . | . . . . . Stealth | -11 -10 -10 -10 -9 --------- Run | Scr Mat Min Exi Min Distress Signals 1 | . 1 . . . Communications Jammed . | . . . . . Distress Signals . | . . . . . Times Spotted 34 | . 5 6 . 23 Peak Tracking Total 11 | . 3 3 . 11 Tactical Retreats 6 | . 2 . . 4 Traps | -11 -10 -10 -10 -9 ------- Run | Scr Mat Min Exi Min Traps Triggered 1 | . 1 . . . Indirectly . | . . . . . Trap Hack Attempts . | . . . . . Triggered . | . . . . . Disarmed . | . . . . . Reprogrammed . | . . . . . Reused . | . . . . . Traps Extracted . | . . . . . Installed . | . . . . . Triggered . | . . . . . Exploded 3 | . . . . 3 Machines | -11 -10 -10 -10 -9 ---------- Run | Scr Mat Min Exi Min Machines Disabled . | . . . . . Max in Single Turn . | . . . . . Machines Sabotaged . | . . . . . Garrisons Compromised . | . . . . . Overloaded Fab Kills . | . . . . . Fab Network Shutdowns . | . . . . . Hacking | -11 -10 -10 -10 -9 --------- Run | Scr Mat Min Exi Min Machines Accessed 3 | . 1 1 1 . Terminals 1 | . 1 . . . Fabricators . | . . . . . Repair Stations . | . . . . . Recycling Units . | . . . . . Scanalyzers . | . . . . . Garrison Access . | . . . . . Total Hacks 6 | . 4 1 1 . Successful 5 | . 3 1 1 . Failed 1 | . 1 . . . Catastrophic . | . . . . . Database Lockouts . | . . . . . Manual 5 | . 4 . 1 . Terminals 4 | . 4 . . . Fabricators . | . . . . . Repair Stations . | . . . . . Recycling Units . | . . . . . Scanalyzers . | . . . . . Garrison Access . | . . . . . Terminal Hacks 3 | . 1 1 1 . Open Door 1 | . . 1 . . Zone Layout 1 | . 1 . . . EX-Prototype ID Bank 1 | . . . 1 . Fabricator Hacks . | . . . . . Repair Station Hacks . | . . . . . Recycling Unit Hacks . | . . . . . Scanalyzer . | . . . . . Garrison Access Hacks . | . . . . . Unauthorized Hacks 2 | . 2 . . . Terminals 2 | . 2 . . . Track 1 | . 1 . . . Botnet 1 | . 1 . . . Fabricators . | . . . . . Repair Stations . | . . . . . Recycling Units . | . . . . . Scanalyzers . | . . . . . Garrison Access . | . . . . . Data Cores Recovered . | . . . . . Used . | . . . . . Hacking Detections 1 | . 1 . . . Full Trace Events . | . . . . . Feedback Events . | . . . . . Feedback Blocked . | . . . . . Robot Schematics Acquired . | . . . . . Robots Built . | . . . . . Matter . | . . . . . Time . | . . . . . Total Robot Build Rating . | . . . . . Part Schematics Acquired . | . . . . . Parts Built . | . . . . . Matter . | . . . . . Time . | . . . . . Total Part Build Rating . | . . . . . Parts Repaired . | . . . . . Time . | . . . . . Parts Recycled . | . . . . . Recycled Matter . | . . . . . Retrieved Matter . | . . . . . Retrieved Components . | . . . . . Parts Scanalyzed . | . . . . . Part Schematics Acquired . | . . . . . Parts Damaged . | . . . . . Bothacking | -11 -10 -10 -10 -9 ------------ Run | Scr Mat Min Exi Min Used RIF Installer . | . . . . . Robots Hacked . | . . . . . Non-combat . | . . . . . Combat . | . . . . . Robot Hacks Applied . | . . . . . Relay Couplers Released . | . . . . . Robots Rewired . | . . . . . Allies Hacked . | . . . . . Hacks Repelled . | . . . . . Allies | -11 -10 -10 -10 -9 -------- Run | Scr Mat Min Exi Min Total Allies 3 | . . 3 . . Largest Group 3 | . . 3 . . Highest-Rated Group 40 | . . 40 . . Highest-Rated Ally 16 | . . 16 . . Total Orders . | . . . . . Ally Attacks 24 | . . 24 . . Total Damage 255 | . . 255 . . Kills 5 | . . 5 . . Allies Corrupted . | . . . . . Allies Melted . | . . . . . Intel | -11 -10 -10 -10 -9 ------- Run | Scr Mat Min Exi Min Robot Analysis Total . | . . . . . Derelict Logs Recovered 3 | . . 2 . 1 Drone Launches . | . . . . . Drone Recoveries . | . . . . . Exploration | -11 -10 -10 -10 -9 ------------- Run | Scr Mat Min Exi Min Turns Passed 2715 | 91 237 1206 676 505 Spaces Moved 1943 | 71 167 756 606 343 Core 1 | 1 . . . . Treads . | . . . . . Legs 324 | . 17 307 . . Wheels 1618 | 70 150 449 606 343 Hover . | . . . . . Flight . | . . . . . Fastest Speed 50 | 50 90 110 110 100 Average Speed 124 | 90 108 151 110 106 Slowest Speed 210 | 100 210 210 110 120 Overloaded Moves . | . . . . . Propulsion Burnouts . | . . . . . Robots Hopped . | . . . . . Cave-ins Triggered . | . . . . . Exploration Rate (%) 58 | 5 35 99 88 67 Regions Visited 4 Branch Regions 3 Pre-discovered Areas 1 | . . 1 . . Known Exits Taken . | . . . . . Unknown Exits Taken 4 | 1 1 1 1 . Scrap Searched 1 | . . 1 . . Spaces Dug . | . . . . . Terrain Destroyed 10 | . 3 . . 7 Melee . | . . . . . Projectile . | . . . . . AOE 10 | . 3 . . 7 Terrain Rammed . | . . . . . Walls Destroyed . | . . . . . Machines Disabled . | . . . . . Actions | -11 -10 -10 -10 -9 --------- Run | Scr Mat Min Exi Min Total 2143 | 87 196 789 618 453 Wait 84 | . 2 14 . 68 Move 1939 | 70 166 755 605 343 Hop . | . . . . . Pick Up 26 | 4 11 2 4 5 Fast Attach 9 | 6 1 1 . 1 Attach 8 | . 2 . . 6 Detach . | . . . . . Swap 6 | . 1 1 2 2 Drop 16 | . . 3 7 6 Fire 55 | 7 13 13 . 22 Melee . | . . . . . Ram . | . . . . . Kick . | . . . . . Crush . | . . . . . Escape Stasis . | . . . . . Rewire . | . . . . . Trap . | . . . . . Miscellaneous . | . . . . . Route ------- -11/Scrapyard -10/Materials -10/Mines (discovered 3 exits: [*Mat x2] / *Exi) -10/Exiles -9/Mines (discovered 1 exit: [*Mat]) History --------- Turn | Location | Event 42 | -11/Scrapyard | Discovered new exit (range 14) 92 | -11/Scrapyard | Entered Materials 179 | -10/Materials | Met 8R-AWN 254 | -10/Materials | Discovered new exit (range 14) 314 | -10/Materials | Build established: Mutant 329 | -10/Materials | Entered Mines 330 | -10/Mines | Followed 8R-AWN into the Mines 337 | -10/Mines | Assisted by bots powering up and referring to "LRC-V3" 379 | -10/Mines | Learned Materials terminal intel 537 | -10/Mines | Found the Drone Emporium 548 | -10/Mines | Found Prototype Device 614 | -10/Mines | Joined a pair of Derelicts in attacking an 0b10 outpost 793 | -10/Mines | Discovered new exit (range 15) 1164 | -10/Mines | Discovered new exit (range 6) 1531 | -10/Mines | Discovered new exit (range 5) 1535 | -10/Mines | Entered Exiles 1570 | -10/Exiles | Welcomed by 8R-AWN 1588 | -10/Exiles | Met EX-HEX 1627 | -10/Exiles | Met EX-BIN 1640 | -10/Exiles | Aligned with FarCom system 1641 | -10/Exiles | Given EX-Vault access code 1667 | -10/Exiles | Opened EX-Vault 1696 | -10/Exiles | Warned to stay clear of 0b10 Research branches 1727 | -10/Exiles | Met EX-DEC 1778 | -10/Exiles | Discovered new exit (range 12) 1883 | -10/Exiles | Visited The Gauntlet 2106 | -10/Exiles | Found XL Autogun Array 2211 | -10/Exiles | Left Exiles lab with XL Autogun Array 2211 | -10/Exiles | Entered Mines 2212 | -9/Mines | Assembled infested the area 2217 | -9/Mines | Assisted by a Guerilla fighting off Assembled 2219 | -9/Mines | Core integrity fell below 50% 2243 | -9/Mines | Met a Derelict bent on vengeance 2262 | -9/Mines | Core integrity fell below 20% 2295 | -9/Mines | Lost 5 parts (1p1n3w) 2458 | -9/Mines | Learned Materials security intel 2699 | -9/Mines | Discovered new exit (range 8) 2716 | -9/Mines | Destroyed self with Light Nuclear Core chain reaction Last Messages --------------- 02534_ Lgt. EM Pulse Cannon destroyed. 02535_ K-01 Serf collects debris. 02536_ U-05 Engineer builds a Wall. 02546_ S-10 Pest destroyed. 02548_ Flight Unit fried. 02548_ S-10 Pest destroyed. 02576_ T-07 Excavator is excavating. 02613_ S-10 Pest destroyed. 02629_ Acquired Lgt. Assault Rifle. 02630_ Acquired 9 matter. 02631_ Acquired 6 matter. 02663_ Acquired 10 matter. 02668_ Acquired Wheel. 02670_ Acquired Lgt. Ion Engine. 02677_ R-06 Scavenger collects Sml. Matter Pod. 02699_ EXIT=FOUND 02706_ Dropped Wheel. 02716_ Chain reaction triggered in Lgt. Nuclear Core. 02716_ Destroyed Particle Gun. 02716_ K-01 Serf destroyed. Map ----- +----------------------------------------------------+ | ??# % ##???? | | ??## ## #???? | | ???####?## #???? | | ?????????## ##??? | | ??????????## #### #??? | | ???????????## ##??#### #??? | | ????????###### ##??????## ##?? | | ???????## ######????????# #?? | | ??????## #######??????# #?? | | ?????## #??????## ##? | | ????## ###### #???????## #? | | ????# ##????# #????????#" % #? | | ????# ##?????# #????????##" #? | | ????# ##??????# ##????######% #? | | ????# ##???????# ##???# % ##? | | ????# #???????## #???# ### #?? | | ##### ######### ##???# #?# ##?? | | ## ###### ### #??? | | ## ##### ! = #??? | | ######### #???# %####### #### #??? | | #???????# #??## ##?????# #??####??? | | #???????# #### ##??????# #????????? | | #???????# % #???????# #????????? | | ######### ### ##???????# #??????#?? | | % #?###########?# ;???? #?? | | ###########????# #@;?? < #?? | | # #???????????# #g;g #?? | | ??##???????????# % #?? | | ???????????????# #;; #?? | | ???????????????#########???#######?? | | ???????????????????????????????????? | | ???????????????????????????????????? | | | | | | | | | | | | | | | | | | | | | | | | | | | | | | | | | | | | | +----------------------------------------------------+ Best States ------------- Heat Dissipation 25 Energy Generation 14 Energy Capacity 160 Matter Stores 300 Matter Capacity 300 Sight Range 16 Terrain Scan Density 10 Armor Coverage 150 Evasion (%) 42 Item Schematics ----------------- None Robot Schematics ------------------ None Fabricated ------------ Nothing Alien Tech Used ----------------- None Achievements -------------- None Challenges ------------ None Game ------ Seed OmegaSmartbombBooster Manual? 0 Play Time 00:26:34 Cumulative 32.5 hours Start 2020.10.22 @ 00:45:04 End 2020.10.22 @ 01:11:39 Sessions 1 Manual Loads 0 Difficulty Rogue Special Mode None Game No. 24 Rogue 24 Adventurer 0 Explorer 0 Win Type - Total 0 Types 0/0/0/0/0/0/0/0/0 Lore% 17 Gallery% 21 Achievement% 19 Wizard Run 0 Options --------- ASCII 0 Keyboard 0 Movement Numpad Keybinds 0 Fullscreen 1 Font 18/SmallcapsGlow Map View 76x50 Tactical HUD 1 Map Filters NONE Filters NONE Steam 1 RUN: 9d0b09c1-a91a-4a1b-9bfc-23a9f2cc0890